bitfinex-derivatives/quotes_BTCF0:USTF0_20241218
["timestamp","ask_amount","ask_price","bid_price","bid_amount"]
[1734500676282,0.58924245,103720.0,103710.0,0.048213]
[1734500676476,0.22844245,103720.0,103710.0,0.048213]
[1734500676681,0.58924245,103720.0,103700.0,0.43216226]
[1734500676886,0.048213,103710.0,103700.0,0.3608]
[1734500677184,0.048213,103710.0,103690.0,0.048222]
[1734500677185,0.048218,103700.0,103690.0,0.048222]
[1734500677482,0.126618,103700.0,103690.0,0.048222]
[1734500677786,0.22325145,103700.0,103690.0,0.11958426]
[1734500677975,0.58405145,103700.0,103680.0,0.48048132]
[1734500678175,0.048223,103690.0,103680.0,0.40911906]
[1734500678681,0.09663345,103690.0,103680.0,0.48048132]
[1734500680782,0.09663345,103690.0,103680.0,0.11968132]
[1734500681088,0.09663345,103690.0,103680.0,0.48048132]
[1734500683101,0.09663345,103690.0,103680.0,0.11968132]
[1734500683304,0.09663345,103690.0,103680.0,0.48048132]
[1734500685896,0.09663345,103690.0,103680.0,0.11968132]
[1734500686198,0.09663345,103690.0,103680.0,0.48048132]
[1734500686404,0.09663345,103690.0,103680.0,0.11968132]
[1734500686998,0.09663345,103690.0,103680.0,0.48048132]
[1734500687193,0.0784,103700.0,103690.0,0.058223]
[1734500687394,0.492609,103720.0,103700.0,0.048215]
[1734500687593,0.67034245,103720.0,103710.0,0.11957526]
[1734500687798,0.22594245,103720.0,103710.0,0.11957526]
[1734500688500,0.17773345,103720.0,103710.0,0.48037526]
[1734500688695,7.281e-05,103730.0,103720.0,0.048209]
[1734500688998,0.09670626,103730.0,103720.0,0.48037126]
[1734500690407,0.09670626,103730.0,103720.0,0.11957126]
[1734500690907,0.09670626,103730.0,103720.0,0.48037126]
[1734500691300,0.09670626,103730.0,103720.0,0.409009]
[1734500693697,0.57707252,103730.0,103710.0,0.409012]
[1734500693900,0.21627252,103730.0,103710.0,0.409012]
[1734500694106,0.14491026,103730.0,103710.0,0.409012]
[1734500694510,0.14491026,103730.0,103720.0,0.11957126]
[1734500694707,0.14491026,103730.0,103720.0,0.048209]
[1734500696904,0.09670626,103730.0,103720.0,0.409009]
[1734500698807,0.09670626,103730.0,103720.0,0.48037126]
[1734500699013,0.09670626,103730.0,103720.0,0.409009]
[1734500703110,0.09670626,103730.0,103720.0,0.48037126]
[1734500704620,0.09670626,103730.0,103720.0,0.409009]
[1734500705918,0.14491026,103730.0,103720.0,0.3608]
[1734500706106,0.25861026,103730.0,103720.0,0.3608]
[1734500706307,0.32997252,103730.0,103720.0,0.3608]
[1734500706523,0.048209,103720.0,103710.0,0.3608]
[1734500706821,0.048213,103710.0,103700.0,0.048218]
[1734500707116,0.526513,103710.0,103690.0,0.048222]
[1734500707420,0.62314645,103710.0,103690.0,0.048222]
[1734500707914,0.26234645,103710.0,103690.0,0.048222]
[1734500708615,0.64629571,103710.0,103690.0,0.048222]
[1734500708818,0.048218,103700.0,103690.0,0.048222]
[1734500709221,0.14485145,103700.0,103690.0,0.048222]
[1734500710117,0.14485145,103700.0,103680.0,0.40911906]
[1734500710825,0.50565145,103700.0,103680.0,0.48048132]
[1734500711336,0.14485145,103700.0,103680.0,0.48048132]
[1734500712318,0.50565145,103700.0,103680.0,0.40911906]
[1734500712910,0.26345145,103700.0,103680.0,0.40911906]
[1734500713510,0.69561371,103700.0,103680.0,0.40911906]
[1734500713721,0.69561371,103700.0,103680.0,0.04831906]
[1734500714125,0.69561371,103700.0,103680.0,0.40911906]
[1734500714314,0.62425145,103700.0,103680.0,0.40911906]
[1734500715727,0.62425145,103700.0,103690.0,0.048223]
[1734500715918,0.57603345,103700.0,103690.0,0.11958526]
[1734500716109,0.45743345,103700.0,103690.0,0.11958526]
[1734500716819,0.45743345,103700.0,103690.0,0.409023]
[1734500716820,0.09663345,103700.0,103690.0,0.409023]
[1734500717023,0.09663345,103700.0,103690.0,0.48038526]
[1734500717523,0.09663345,103700.0,103690.0,0.048223]
[1734500719232,0.57701671,103700.0,103680.0,0.40911906]
[1734500719424,0.11958526,103690.0,103680.0,0.04831906]
[1734500719925,0.21621871,103690.0,103680.0,0.04831906]
[1734500720321,0.14485645,103690.0,103680.0,0.04831906]
[1734500721631,0.50565645,103690.0,103680.0,0.04831906]
[1734500722733,0.57701871,103690.0,103680.0,0.04831906]
[1734500723832,0.21621871,103690.0,103680.0,0.04831906]
[1734500724418,0.09663345,103690.0,103680.0,0.04831906]
[1734500724622,0.09663345,103690.0,103680.0,0.40911906]
[1734500725423,0.80352452,103690.0,103640.0,0.36136]
[1734500725637,0.43216226,103650.0,103630.0,0.40176498]
[1734500725832,0.3608,103650.0,103640.0,0.048244]
[1734500726423,0.3608,103670.0,103660.0,0.058237]
[1734500726636,0.3608,103670.0,103660.0,0.048237]
[1734500727126,0.59988926,103680.0,103660.0,0.048237]
[1734500727328,0.59988926,103680.0,103660.0,0.3608]
[1734500727531,0.59988926,103680.0,103660.0,0.048236]
[1734500727735,0.3608,103670.0,103660.0,0.048236]
[1734500728433,0.48039726,103670.0,103650.0,0.048241]
[1734500728637,0.48039926,103660.0,103650.0,0.048241]
[1734500729029,0.48039926,103660.0,103640.0,0.68061489]
[1734500729337,0.48039926,103660.0,103640.0,0.56641489]
[1734500729542,0.11967387,103650.0,103640.0,0.44961489]
[1734500729735,0.04831161,103650.0,103640.0,0.40914991]
[1734500730041,0.40911161,103650.0,103640.0,0.04834991]
[1734500730636,0.36087061,103650.0,103640.0,0.04834991]
[1734500730936,0.36087061,103650.0,103640.0,0.05834991]
[1734500731138,0.36087061,103650.0,103640.0,0.04834991]
[1734500731333,7.061e-05,103650.0,103640.0,0.40914991]
[1734500731931,7.061e-05,103650.0,103640.0,0.44961489]
[1734500732132,7.061e-05,103650.0,103640.0,0.40914991]
[1734500732435,7.061e-05,103650.0,103640.0,0.44961489]
[1734500732845,7.061e-05,103650.0,103640.0,0.40914991]
[1734500734543,7.061e-05,103650.0,103640.0,0.52097715]
[1734500735337,7.061e-05,103650.0,103640.0,0.44961489]
[1734500735541,7.061e-05,103650.0,103640.0,0.52097715]
[1734500736047,7.061e-05,103650.0,103640.0,0.44961489]
[1734500736338,7.061e-05,103650.0,103640.0,1.09672836]
[1734500736739,0.3608,103670.0,103640.0,1.09672836]
[1734500736740,0.3608,103670.0,103660.0,0.048237]
[1734500737849,0.36090856,103670.0,103660.0,0.048237]
[1734500739046,0.00010856,103670.0,103660.0,0.048237]
[1734500739737,0.00010856,103670.0,103660.0,0.08870198]
[1734500740649,0.00010856,103670.0,103660.0,0.048237]
[1734500742742,0.00010856,103670.0,103660.0,0.409037]
[1734500742948,0.00010856,103670.0,103660.0,0.048237]
[1734500743642,0.00010856,103670.0,103660.0,0.409037]
[1734500743842,0.00010856,103670.0,103660.0,0.048237]
[1734500744535,0.00010856,103670.0,103660.0,0.48039926]
[1734500744847,0.00010856,103670.0,103660.0,0.52086424]
[1734500745150,0.00010856,103670.0,103660.0,0.59909926]
[1734500746049,5.6e-07,103670.0,103660.0,0.59909926]
[1734500746241,5.6e-07,103670.0,103660.0,0.60909926]
[1734500746440,5.6e-07,103670.0,103660.0,0.89909926]
[1734500746845,0.1266,103700.0,103690.0,0.048223]
[1734500748348,0.00011666,103710.0,103700.0,0.048218]
[1734500748550,0.00011666,103710.0,103700.0,0.48038026]
[1734500752052,6.6e-07,103710.0,103700.0,0.85174252]
[1734500752751,0.0005,103730.0,103720.0,0.048209]
[1734500752952,0.1255,103740.0,103730.0,0.048204]
[1734500753156,0.1255,103740.0,103730.0,0.11956626]
[1734500754256,0.4863,103740.0,103730.0,0.11956626]
[1734500754447,0.1255,103740.0,103730.0,0.11956626]
[1734500755348,0.1255,103740.0,103730.0,0.048204]
[1734500755349,0.4863,103740.0,103730.0,0.048204]
[1734500755548,0.1255,103740.0,103730.0,0.409004]
[1734500755850,0.1255,103740.0,103730.0,0.48036626]
[1734500756054,0.1255,103740.0,103730.0,0.11956626]
[1734500756554,0.1255,103740.0,103730.0,0.048204]
[1734500757056,0.126,103740.0,103730.0,0.048204]
[1734500757449,0.126,103740.0,103730.0,0.11956626]
[1734500757956,0.1255,103740.0,103730.0,0.11956626]
[1734500758344,0.1255,103740.0,103730.0,0.48036626]
[1734500759060,0.126,103740.0,103730.0,0.11956626]
[1734500759259,0.126,103740.0,103730.0,0.048204]
[1734500760051,0.1255,103740.0,103730.0,0.48036626]
[1734500761557,0.0005912,103750.0,103740.0,0.048199]
[1734500761754,0.0005912,103750.0,103740.0,0.11956126]
[1734500761955,9.12e-05,103750.0,103740.0,0.48036126]
[1734500762653,9.12e-05,103750.0,103740.0,0.49036126]
[1734500762853,9.12e-05,103750.0,103740.0,0.48044663]
[1734500763062,0.0005912,103750.0,103740.0,0.48044663]
[1734500763461,0.0005912,103750.0,103740.0,0.55180889]
[1734500763754,0.0005912,103750.0,103740.0,0.67090889]
[1734500763954,9.12e-05,103750.0,103740.0,0.67090889]
[1734500764353,0.525281,103780.0,103770.0,0.048185]
[1734500764354,0.3608,103780.0,103770.0,0.048185]
[1734500764553,0.6066,103790.0,103780.0,0.048181]
[1734500764946,0.2458,103790.0,103780.0,0.048181]
[1734500765152,0.2458,103790.0,103780.0,0.11954326]
[1734500765452,0.24588303,103790.0,103780.0,0.048181]
[1734500766560,0.60668303,103790.0,103780.0,0.048181]
[1734500767850,0.65485903,103790.0,103770.0,0.408985]
[1734500768353,0.65485903,103790.0,103770.0,0.48034726]
[1734500768964,0.0005,103780.0,103770.0,0.48034726]
[1734500769651,0.0005,103780.0,103770.0,0.408985]
[1734500770162,0.65485903,103790.0,103770.0,0.408985]
[1734500771059,0.0005,103780.0,103770.0,0.408985]
[1734500772165,0.12068303,103790.0,103780.0,0.048181]
[1734500772464,0.12068303,103790.0,103780.0,0.48034326]
[1734500773066,0.12118303,103790.0,103780.0,0.48034326]
[1734500774166,0.12118303,103790.0,103780.0,0.408981]
[1734500775064,0.12068303,103790.0,103780.0,0.408981]
[1734500775466,0.12068303,103790.0,103780.0,0.048181]
[1734500776066,0.12068303,103790.0,103780.0,0.11954326]
[1734500776266,0.12068303,103790.0,103780.0,0.048181]
[1734500776652,0.60102329,103790.0,103770.0,0.408985]
[1734500776860,0.52966103,103790.0,103770.0,0.408985]
[1734500777062,0.3608,103780.0,103770.0,0.048185]
[1734500777268,0.61547509,103790.0,103770.0,0.048185]
[1734500777473,0.61547509,103790.0,103770.0,0.11954726]
[1734500778062,0.3608,103780.0,103770.0,0.11954726]
[1734500778366,0.68171584,103790.0,103770.0,0.43216226]
[1734500778562,0.56729709,103790.0,103780.0,0.12954326]
[1734500778766,0.56729709,103790.0,103780.0,0.11954326]
[1734500779266,0.20649709,103790.0,103780.0,0.11954326]
[1734500779466,0.20649709,103790.0,103780.0,0.48034326]
[1734500779662,0.20649709,103790.0,103780.0,0.11954326]
[1734500780263,0.20649709,103790.0,103780.0,0.048181]
[1734500780666,0.32091584,103790.0,103780.0,0.048181]
[1734500780863,0.20649709,103790.0,103780.0,0.048181]
[1734500781056,0.20649709,103790.0,103780.0,0.48034326]
[1734500781260,0.20649709,103790.0,103780.0,0.11954326]
[1734500781456,0.11450178,103790.0,103780.0,0.48034326]
[1734500781667,8.303e-05,103790.0,103780.0,0.48034326]
[1734500782469,8.303e-05,103790.0,103780.0,0.72004326]
[1734500783464,8.303e-05,103790.0,103780.0,0.72014761]
[1734500785370,0.08620884,103790.0,103780.0,0.72014761]
[1734500787166,8.303e-05,103790.0,103780.0,0.72014761]
[1734500787973,0.18612581,103800.0,103790.0,0.048176]
[1734500788163,0.30054456,103800.0,103790.0,0.48033826]
[1734500788569,0.30054456,103800.0,103790.0,0.83617826]
[1734500789366,0.21441875,103800.0,103790.0,0.83617826]
[1734500790866,0.30067492,103800.0,103790.0,0.83617826]
[1734500791467,0.21441875,103800.0,103790.0,0.83617826]
[1734500791668,0.30070976,103800.0,103790.0,0.83617826]
[1734500792065,0.30070976,103800.0,103790.0,0.84617826]
[1734500792271,0.18629101,103800.0,103790.0,0.83617826]
[1734500792877,0.18629101,103800.0,103790.0,0.90754052]
[1734500793080,0.18629101,103800.0,103790.0,0.83617826]
[1734500793375,0.18629101,103800.0,103790.0,1.20754052]
[1734500794473,0.18629101,103800.0,103790.0,0.90754052]
[1734500794878,0.18629101,103800.0,103790.0,0.83617826]
[1734500795270,0.1,103800.0,103790.0,0.83617826]
[1734500795976,0.18629101,103800.0,103790.0,0.83617826]
[1734500796275,0.1,103800.0,103790.0,0.83617826]
[1734500796486,0.1,103800.0,103790.0,0.90754052]
[1734500797179,0.1,103800.0,103790.0,0.83617826]
[1734500799277,0.1,103800.0,103790.0,0.90754052]
[1734500799873,0.1,103800.0,103790.0,1.20754052]
[1734500800079,0.20083049,103820.0,103800.0,0.048171]
[1734500800274,0.20083049,103820.0,103810.0,0.48032926]
[1734500800676,0.08641174,103820.0,103810.0,0.48032926]
[1734500802387,0.00012073,103820.0,103810.0,0.48032926]
[1734500802780,0.08641174,103820.0,103810.0,0.48032926]
[1734500803385,0.00012073,103820.0,103810.0,0.48032926]
[1734500805184,0.00012073,103820.0,103810.0,0.84112926]
[1734500811693,0.00012073,103820.0,103800.0,0.04817]
[1734500811890,0.694138,103820.0,103790.0,0.43216226]
[1734500812191,0.408968,103810.0,103790.0,0.48033726]
[1734500812378,0.1159,103800.0,103790.0,0.48033726]
[1734500812581,0.2401,103800.0,103790.0,0.48033726]
[1734500813292,0.2401,103800.0,103790.0,0.11953726]
[1734500813481,0.2401,103800.0,103790.0,0.48033726]
[1734500813881,0.2401,103800.0,103790.0,0.11953726]
[1734500814088,0.2401,103800.0,103790.0,0.48033726]
[1734500814693,0.649071,103800.0,103780.0,0.76480435]
[1734500815092,0.1197,103790.0,103780.0,0.83616661]
[1734500815395,0.42632578,103790.0,103780.0,0.08843503]
[1734500815583,0.42632578,103790.0,103780.0,0.04828435]
[1734500819996,0.47450178,103790.0,103780.0,0.00010435]
[1734500822687,0.048182,103780.0,103760.0,0.40899]
[1734500822893,0.2349,103770.0,103760.0,0.40899]
[1734500823695,0.2349,103770.0,103760.0,0.4090722]
[1734500824291,0.66706226,103770.0,103760.0,8.22e-05]
[1734500824490,0.71524726,103770.0,103760.0,8.22e-05]
[1734500824695,0.04819,103760.0,103740.0,0.048199]
[1734500824892,0.1225,103760.0,103750.0,0.11955726]
[1734500825096,0.1225,103760.0,103750.0,0.48035726]
[1734500825291,0.1225,103760.0,103750.0,0.048195]
[1734500825693,0.1225,103760.0,103750.0,0.04826874]
[1734500825902,0.4833,103760.0,103750.0,0.04826874]
[1734500826495,0.60285226,103760.0,103750.0,7.374e-05]
[1734500826696,0.90292932,103760.0,103750.0,7.374e-05]
[1734500827100,0.98922033,103760.0,103750.0,7.4e-07]
[1734500827303,0.048207,103730.0,103710.0,0.048213]
[1734500827505,0.3608,103720.0,103710.0,0.048213]
[1734500827800,0.409007,103730.0,103710.0,0.048213]
[1734500827999,0.531907,103730.0,103710.0,0.11957526]
[1734500828201,0.531907,103730.0,103710.0,0.048213]
[1734500828391,0.531907,103730.0,103720.0,0.00010156]
[1734500828590,0.892707,103730.0,103720.0,0.00010156]
[1734500829105,0.96406926,103730.0,103720.0,0.00010156]
[1734500829307,0.892707,103730.0,103720.0,0.00010156]
[1734500830104,0.892707,103730.0,103720.0,0.00060156]
[1734500830502,1.016907,103730.0,103720.0,0.00060156]
[1734500830806,1.38826926,103730.0,103720.0,0.00060156]
[1734500830997,1.38826926,103730.0,103720.0,0.00010156]
[1734500832101,1.38826926,103730.0,103720.0,0.00060156]
[1734500832901,1.08826926,103730.0,103720.0,0.00060156]
[1734500833103,1.08826926,103730.0,103720.0,0.00010156]
[1734500833104,1.38826926,103730.0,103720.0,0.00010156]
[1734500835997,1.016907,103730.0,103720.0,0.00010156]
[1734500836710,1.08826926,103730.0,103720.0,0.00010156]
[1734500837303,1.38826926,103730.0,103720.0,0.00010156]
[1734500838507,1.08826926,103730.0,103720.0,0.00010156]
[1734500839015,0.8458,103730.0,103720.0,0.04831056]
[1734500839710,0.485,103730.0,103720.0,0.04831056]
[1734500841411,0.409,103740.0,103720.0,0.04831056]
[1734500841715,0.5361,103740.0,103720.0,0.04831056]
[1734500842411,0.4879,103740.0,103730.0,0.048204]
[1734500843316,0.1271,103740.0,103730.0,0.048204]
[1734500844020,0.4879,103740.0,103730.0,0.048204]
[1734500844523,0.3608,103750.0,103740.0,0.058199]
[1734500844814,0.3608,103750.0,103740.0,0.048199]
[1734500846622,0.53526806,103760.0,103740.0,0.048199]
[1734500848017,0.3608,103750.0,103740.0,0.048199]
[1734500848509,0.53526806,103760.0,103740.0,0.048199]
[1734500849017,0.60663032,103760.0,103740.0,0.048199]
[1734500849414,0.53526806,103760.0,103740.0,0.048199]
[1734500850214,0.62155907,103760.0,103740.0,0.048199]
[1734500851015,0.43216226,103750.0,103730.0,0.409004]
[1734500851312,0.048199,103740.0,103730.0,0.048204]
[1734500853319,0.13449001,103740.0,103730.0,0.048204]
[1734500853716,0.49529001,103740.0,103730.0,0.048204]
[1734500854423,0.49529001,103740.0,103720.0,0.16890856]
[1734500854820,0.60970876,103740.0,103720.0,0.16890856]
[1734500856520,0.60970876,103740.0,103730.0,0.048204]
[1734500856822,0.24890876,103740.0,103730.0,0.048204]
[1734500857129,0.13449001,103740.0,103730.0,0.048204]
[1734500862519,0.59291875,103750.0,103740.0,0.048199]
[1734500862520,0.47521875,103750.0,103740.0,0.048199]
[1734500862720,0.53526806,103760.0,103740.0,0.08837573]
[1734500863120,0.53526806,103760.0,103740.0,0.048199]
[1734500863324,0.60663032,103760.0,103740.0,0.08837573]
[1734500863525,0.3608,103750.0,103740.0,0.08837573]
[1734500863826,0.048199,103740.0,103730.0,0.409003]
[1734500864227,0.408999,103740.0,103730.0,0.048203]
[1734500864424,0.51857781,103740.0,103720.0,0.08929196]
[1734500864626,0.171204,103730.0,103720.0,0.08929196]
[1734500864829,0.11699539,103730.0,103720.0,0.04830956]
[1734500866227,0.54915765,103730.0,103720.0,0.00010156]
[1734500866425,0.56421094,103730.0,103720.0,0.00010156]
[1734500868232,0.47779539,103730.0,103720.0,0.00010156]
[1734500869330,0.84915765,103730.0,103720.0,0.00010156]
[1734500869537,0.048213,103710.0,103700.0,0.1409824]
[1734500869741,0.409013,103710.0,103700.0,0.1409824]
[1734500869933,0.48037526,103710.0,103700.0,0.1409824]
[1734500870122,0.59707526,103710.0,103700.0,0.1409824]
[1734500870523,0.525713,103710.0,103700.0,0.14105953]
[1734500871033,0.59707526,103710.0,103700.0,0.14105953]
[1734500871243,0.59707526,103710.0,103700.0,0.10007713]
[1734500871424,0.95787526,103710.0,103700.0,0.10007713]
[1734500871734,1.25787526,103710.0,103700.0,0.10007713]
[1734500872535,0.95787526,103710.0,103700.0,0.10007713]
[1734500872735,1.08287526,103710.0,103700.0,0.10007713]
[1734500876343,1.011513,103710.0,103700.0,0.10007713]
[1734500876541,0.95787526,103710.0,103700.0,0.10007713]
[1734500877647,1.25787526,103710.0,103700.0,0.10007713]
[1734500877948,1.32923752,103710.0,103700.0,0.10007713]
[1734500879235,0.95787526,103710.0,103700.0,0.10007713]
[1734500879439,1.32923752,103710.0,103700.0,0.10007713]
[1734500879835,1.02923752,103710.0,103700.0,0.10007713]
[1734500880249,0.95787526,103710.0,103700.0,0.10007713]
[1734500880447,1.02923752,103710.0,103700.0,0.10007713]
[1734500881240,0.95787526,103710.0,103700.0,0.10007713]
[1734500887350,0.95980371,103710.0,103700.0,0.14829513]
[1734500887648,0.84310371,103710.0,103700.0,0.14829513]
[1734500887851,0.86222064,103710.0,103700.0,0.14829513]
[1734500888252,0.72352845,103710.0,103700.0,0.14829513]
[1734500888450,0.00192845,103710.0,103700.0,0.58045739]
[1734500888652,0.00192845,103710.0,103700.0,0.62143979]
[1734500888846,0.3608,103720.0,103710.0,0.048213]
[1734500889047,0.3608,103720.0,103710.0,0.285813]
[1734500889452,0.43216226,103720.0,103710.0,0.285813]
[1734500890160,0.47779739,103730.0,103720.0,0.048209]
[1734500890459,0.54915965,103730.0,103710.0,0.413412]
[1734500890763,0.43216226,103720.0,103710.0,0.413412]
[1734500891451,0.07136226,103720.0,103710.0,0.413412]
[1734500891652,0.43216226,103720.0,103710.0,0.413412]
[1734500892156,0.048213,103710.0,103700.0,0.50909413]
[1734500892355,0.11957526,103710.0,103700.0,0.55007653]
[1734500892661,0.048213,103710.0,103700.0,0.55007653]
[1734500894058,0.048213,103710.0,103700.0,0.46087713]
[1734500894266,0.48037526,103710.0,103700.0,0.10007713]
[1734500894459,0.55173752,103710.0,103700.0,0.10007713]
[1734500894759,0.68093752,103710.0,103700.0,0.10007713]
[1734500894961,0.79983752,103710.0,103700.0,0.10007713]
[1734500897956,1.09983752,103710.0,103700.0,0.10007713]
[1734500898459,1.09993877,103710.0,103700.0,0.10007713]
[1734500898662,1.18648557,103710.0,103680.0,0.0409824]
[1734500898860,0.48038526,103690.0,103680.0,0.0409824]
[1734500899767,0.48038526,103690.0,103680.0,0.04110647]
[1734500901353,0.84118526,103690.0,103680.0,0.04110647]
[1734500902251,0.91254752,103690.0,103680.0,0.04110647]
[1734500902457,0.84118526,103690.0,103680.0,0.04110647]
[1734500903062,0.84118526,103690.0,103680.0,0.00012407]
[1734500906564,1.29909432,103690.0,103650.0,0.527041]
[1734500906757,0.48039926,103660.0,103650.0,0.1589824]
[1734500906962,0.47439314,103660.0,103650.0,0.1589824]
[1734500907365,0.47439314,103660.0,103650.0,0.0409824]
[1734500908462,0.47439314,103660.0,103640.0,0.32810636]
[1734500908659,0.00192957,103650.0,103640.0,0.32810636]
[1734500909270,0.00192957,103650.0,103640.0,0.32860636]
[1734500910068,0.12153283,103650.0,103640.0,0.23937796]
[1734500910277,0.48233283,103650.0,103640.0,0.04106036]
[1734500912367,0.48233283,103650.0,103640.0,7.796e-05]
[1734500914772,0.55369509,103650.0,103640.0,7.796e-05]
[1734500915070,0.8034018,103650.0,103640.0,7.796e-05]
[1734500915662,0.73203954,103650.0,103640.0,7.796e-05]
[1734500917477,0.8034018,103650.0,103640.0,7.796e-05]
[1734500917876,0.73203954,103650.0,103640.0,7.796e-05]
[1734500919385,0.8034018,103650.0,103640.0,7.796e-05]
[1734500919577,0.9312018,103650.0,103640.0,7.796e-05]
[1734500920582,0.9312018,103650.0,103600.0,0.4799997]
[1734500920583,1.2312018,103650.0,103600.0,0.4799997]
[1734500920785,0.07136226,103620.0,103600.0,0.9210434]
[1734500920977,0.48041626,103630.0,103610.0,0.048259]
[1734500921281,0.48041626,103630.0,103610.0,0.048759]
[1734500921694,0.48041626,103630.0,103620.0,0.00010438]
[1734500922487,0.409054,103630.0,103620.0,0.00010438]
[1734500922887,0.48041626,103630.0,103620.0,0.00010438]
[1734500923981,0.3608,103640.0,103620.0,0.04835938]
[1734500924183,0.409047,103640.0,103620.0,0.40915938]
[1734500924387,0.409047,103640.0,103630.0,0.3668]
[1734500924683,0.048247,103640.0,103630.0,0.3668]
[1734500924887,0.11960926,103640.0,103630.0,0.3668]
[1734500925695,0.048247,103640.0,103630.0,0.3668]
[1734500926686,0.68186897,103650.0,103630.0,0.3668]
[1734500926892,0.11960826,103640.0,103630.0,0.415049]
[1734500927481,0.11960826,103640.0,103620.0,0.40915938]
[1734500927682,0.11961226,103630.0,103620.0,0.53065938]
[1734500927885,0.06535624,103630.0,103620.0,0.57164178]
[1734500928477,0.04825,103630.0,103620.0,0.57164178]
[1734500928695,0.04825,103630.0,103620.0,0.53065938]
[1734500929390,0.04825,103630.0,103620.0,0.16985938]
[1734500929691,0.04825,103630.0,103620.0,0.53065938]
[1734500930290,0.04825,103630.0,103620.0,0.57164178]
[1734500930685,0.04825,103630.0,103620.0,0.52338678]
[1734500931192,0.11961226,103630.0,103620.0,0.40188678]
[1734500931388,0.48041226,103630.0,103620.0,0.04108678]
[1734500933584,0.11961226,103630.0,103620.0,0.04108678]
[1734500933781,0.48041226,103630.0,103620.0,0.04108678]
[1734500935187,0.04825,103630.0,103620.0,0.04108678]
[1734500935980,0.48041226,103630.0,103620.0,0.04108678]
[1734500936391,0.40905,103630.0,103620.0,0.04108678]
[1734500936591,0.04825,103630.0,103620.0,0.04108678]
[1734500938095,0.04825,103630.0,103620.0,0.08934178]
[1734500938389,0.45112493,103640.0,103630.0,0.04825]
[1734500938390,0.409047,103640.0,103630.0,0.04825]
[1734500938590,0.409047,103640.0,103630.0,0.2106324]
[1734500938795,0.048247,103640.0,103630.0,0.2106324]
[1734500940088,0.048247,103640.0,103630.0,0.16965]
[1734500940289,0.048247,103640.0,103630.0,0.2106324]
[1734500940987,0.048247,103640.0,103630.0,0.0409824]
[1734500940988,0.48040926,103640.0,103630.0,0.0409824]
[1734500941189,0.48040926,103640.0,103620.0,0.08934178]
[1734500944212,0.48040926,103640.0,103620.0,0.45014178]
[1734500944213,0.04825,103630.0,103620.0,0.45014178]
[1734500945689,0.04825,103630.0,103620.0,0.08934178]
[1734500945894,0.04825,103630.0,103620.0,0.45014178]
[1734500946299,0.04825,103630.0,103620.0,0.08934178]
[1734500946500,0.04825,103630.0,103620.0,0.45014178]
[1734500947005,0.04825,103630.0,103620.0,0.08934178]
[1734500949303,0.11961226,103630.0,103620.0,0.08934178]
[1734500949505,0.04825,103630.0,103620.0,0.08934178]
[1734500950693,0.48041226,103630.0,103620.0,0.04108678]
[1734500951007,0.42614917,103630.0,103620.0,0.04108678]
[1734500951198,0.47439917,103630.0,103620.0,0.04108678]
[1734500951602,0.48041226,103630.0,103620.0,0.04108678]
[1734500952806,0.61001226,103630.0,103620.0,0.04108678]
[1734500953500,0.61001226,103630.0,103620.0,0.00010438]
[1734500953998,0.40905,103630.0,103620.0,0.00010438]
[1734500954606,0.48041226,103630.0,103620.0,0.00010438]
[1734500956805,0.48041226,103630.0,103620.0,0.04108678]
[1734500957006,0.48041226,103630.0,103620.0,0.00010438]
[1734500964706,0.11961226,103630.0,103620.0,0.00010438]
[1734500964906,0.48041226,103630.0,103620.0,0.00010438]
[1734500965805,0.11961226,103630.0,103620.0,0.00010438]
[1734500966109,0.48041226,103630.0,103620.0,0.04108678]
[1734500966314,0.11961226,103630.0,103620.0,0.04108678]
[1734500966501,0.11961226,103630.0,103620.0,0.55179118]
[1734500966903,0.11961226,103630.0,103620.0,0.67399118]
[1734500967306,0.43216226,103630.0,103620.0,0.67399118]
[1734500968118,0.48041226,103630.0,103620.0,0.67399118]
[1734500968708,0.11961226,103630.0,103620.0,0.67399118]
[1734500970419,0.11961226,103630.0,103620.0,0.63300878]
[1734500970810,0.04825,103630.0,103620.0,0.63300878]
[1734500971205,0.49938246,103640.0,103620.0,0.63300878]
[1734500971406,0.13858246,103640.0,103620.0,1.51187159]
[1734500972514,0.07136226,103630.0,103620.0,0.17055938]
[1734500973312,0.11961226,103630.0,103620.0,0.17055938]
[1734500973713,0.11961226,103630.0,103620.0,0.00010438]
[1734500973908,0.48041226,103630.0,103620.0,0.46255378]
[1734500974120,0.48041226,103630.0,103620.0,0.5027337]
[1734500974319,0.48041226,103630.0,103620.0,0.0402843]
[1734500976417,0.48041226,103630.0,103620.0,0.00010438]
[1734500977022,0.48041226,103630.0,103620.0,0.0402843]
[1734500977718,0.48041226,103630.0,103620.0,0.00010438]
[1734500979029,0.48041226,103630.0,103620.0,0.04835938]
[1734500979030,0.40905,103630.0,103620.0,0.04835938]
[1734500979219,0.07136226,103630.0,103620.0,0.5509887]
[1734500979419,0.43216226,103630.0,103620.0,0.5027337]
[1734500979718,0.48041226,103630.0,103620.0,0.46255378]
[1734500980322,0.48041226,103630.0,103620.0,0.00010438]
[1734500980524,0.48041226,103630.0,103620.0,0.04835938]
[1734500980823,0.48041226,103630.0,103620.0,0.51080878]
[1734500980824,0.11961226,103630.0,103620.0,0.51080878]
[1734500981028,0.48041226,103630.0,103620.0,0.51080878]
[1734500981736,0.48041226,103630.0,103620.0,0.04835938]
[1734500982526,0.4280192,103640.0,103620.0,0.04835938]
[1734500982834,0.4280192,103640.0,103620.0,0.65565938]
[1734500982835,0.13858146,103640.0,103620.0,0.65565938]
[1734500983528,0.07136226,103630.0,103620.0,0.65565938]
[1734500984121,0.07136226,103630.0,103620.0,1.11810878]
[1734500984327,0.11961226,103630.0,103620.0,1.3403722]
[1734500984525,0.48041226,103630.0,103620.0,0.46228784]
[1734500984725,0.48041226,103630.0,103620.0,0.00010438]
[1734500985625,0.55177452,103630.0,103620.0,0.00010438]
[1734500985827,0.55370446,103630.0,103620.0,0.00010438]
[1734500986029,0.568889,103630.0,103620.0,0.00010438]
[1734500986229,0.4823422,103630.0,103620.0,0.00010438]
[1734500987523,0.568889,103630.0,103620.0,0.00010438]
[1734500989624,0.4823422,103630.0,103620.0,0.00010438]
[1734500991045,0.41097994,103630.0,103620.0,0.00010438]
[1734500991337,0.41097994,103630.0,103620.0,0.51054284]
[1734500991531,0.41097994,103630.0,103620.0,0.63414284]
[1734500991737,0.41097994,103630.0,103620.0,0.17195938]
[1734500995340,0.41097994,103630.0,103620.0,0.12370438]
[1734500995540,0.4823422,103630.0,103620.0,0.00010438]
[1734500995738,0.4823422,103630.0,103620.0,0.46228784]
[1734500995941,0.4823422,103630.0,103620.0,0.00010438]
[1734500997843,0.41097994,103630.0,103620.0,0.00010438]
[1734500998444,0.4823422,103630.0,103620.0,0.00010438]